[Event "1st Chartres GM 2020"]
[Site "Chartres"]
[Date "2020.10.01"]
[Round "4.4"]
[White "David, Alberto"]
[Black "Lamard, Guillaume"]
[Result "1-0"]
[ECO "D23"]
[WhiteElo "2520"]
[BlackElo "2486"]
[Annotator "ChessBase"]
[PlyCount "87"]
[EventDate "2020.09.30"]
[EventType "tourn"]
[EventCountry "FRA"]
[SourceTitle "playchess.com"]
[Source "ChessBase"]
[SourceQuality "1"]
[TimeControl "5400+30"]

1. d4 {[%emt 0:00:00]} d5 {[%emt 0:00:00]} 2. c4 {[%emt 0:00:00]} c6 {[%emt 0:00:00]} 3. Nf3 {[%emt 0:06:06]} Nf6 {[%emt 0:00:00]} 4. Qb3 {[%emt 0:01:14]} dxc4 {[%emt 0:00:00]} 5. Qxc4 {[%emt 0:00:06]} Bf5 {[%emt 0:00:00]} 6. g3 {[%emt 0:01:01]} e6 {[%emt 0:00:03]} 7. Bg2 {[%emt 0:00:05]} Be7 {[%emt 0:00:02]} 8. O-O {[%emt 0:01:33]} O-O {[%emt 0:00:04]} 9. e3 {[%emt 0:04:01]} Nbd7 {[%emt 0:00:10]} 10. Rd1 {[%emt 0:03:19]} Rc8 {[%emt 0:02:02]} 11. Qe2 {[%emt 0:03:33]} Bg6 {[%emt 0:00:27]} 12. Nc3 {[%emt 0:05:13]} b5 {[%emt 0:00:05]} 13. b3 {[%emt 0:04:34]} Qa5 {[%emt 0:09:39]} 14. Bb2 {[%emt 0:10:56]} b4 {[%emt 0:08:37]} 15. Na4 {[%emt 0:00:20]} Rc7 {[%emt 0:11:17]} 16. h3 {[%emt 0:17:24]} Qb5 {[%emt 0:30:18]} 17. Qe1 {[%emt 0:01:00]} Be4 {[%emt 0:03:27]} 18. Rac1 {[%emt 0:02:26]} Qb7 {[%emt 0:05:21]} 19. Nc5 {[%emt 0:08:57]} Nxc5 {[%emt 0:01:40]} 20. dxc5 {[%emt 0:00:05]} a5 {[%emt 0:01:05]} 21. Nd2 {[%emt 0:06:42]} Bxg2 {[%emt 0:06:13]} 22. Kxg2 {[%emt 0:00:05]} Nd7 {[%emt 0:01:20]} 23. Ne4 {[%emt 0:02:02]} Qb5 {[%emt 0:02:38]} 24. Qd2 {[%emt 0:02:00]} Rd8 {[%emt 0:02:25]} 25. Nd6 {[%emt 0:08:26]} Qb8 {[%emt 0:01:36]} 26. e4 {[%emt 0:01:38]} Bxd6 {[%emt 0:06:45]} 27. Qxd6 {[%emt 0:03:44]} Rcc8 {[%emt 0:02:03]} 28. Qe7 {[%emt 0:03:18]} Nf8 {[%emt 0:00:19]} 29. Be5 {[%emt 0:01:12]} Qa8 {[%emt 0:01:45]} 30. Qg5 {[%emt 0:00:10]} Ng6 {[%emt 0:00:17]} 31. Bd6 {[%emt 0:00:10]} Qa6 {[%emt 0:02:15]} 32. Rd2 {[%emt 0:02:01]} Qb7 {[%emt 0:00:55]} 33. h4 {[%emt 0:00:07]} f6 {[%emt 0:01:07]} 34. Qg4 {[%emt 0:00:28]} Qd7 {[%emt 0:00:39]} 35. h5 {[%emt 0:02:25]} Ne5 {[%emt 0:01:10]} 36. Bxe5 {[%emt 0:00:26]} Qxd2 {[%emt 0:00:07]} 37. Bxf6 {[%emt 0:00:04]} Rd7 {[%emt 0:00:05]} 38. Bg5 {[%emt 0:01:29]} Qd4 {[%emt 0:02:06]} 39. Qxe6+ {[%emt 0:00:03]} Kh8 {[%emt 0:00:13]} 40. Rc4 {[%emt 0:00:25]} Qd1 {[%emt 0:00:49]} 41. h6 {[%emt 0:00:13]} Rf8 {[%emt 0:00:47]} 42. hxg7+ {[%emt 0:00:09]} Rxg7 {[%emt 0:00:31]} 43. Bf6 {[%emt 0:00:07]} Qe2 {[%emt 0:00:15]} 44. Rd4 {[%emt 0:00:30]} 1-0

[Event "1st Chartres GM 2020"]
[Site "Chartres"]
[Date "2020.10.01"]
[Round "4.5"]
[White "Loiseau, Quentin"]
[Black "Stephan, Victor"]
[Result "1/2-1/2"]
[ECO "C42"]
[WhiteElo "2457"]
[BlackElo "2439"]
[Annotator "ChessBase"]
[PlyCount "36"]
[EventDate "2020.09.30"]
[EventType "tourn"]
[EventCountry "FRA"]
[SourceTitle "playchess.com"]
[Source "ChessBase"]
[SourceQuality "1"]
[TimeControl "5400+30"]

1. e4 {[%emt 0:00:00]} e5 {[%emt 0:00:00]} 2. Nf3 {[%emt 0:00:00]} Nf6 {[%emt 0:00:00]} 3. Nxe5 {[%emt 0:03:05]} d6 {[%emt 0:00:02]} 4. Nd3 {[%emt 0:00:04]} Nxe4 {[%emt 0:00:46]} 5. Qe2 {[%emt 0:00:17]} Qe7 {[%emt 0:01:10]} 6. Nf4 {[%emt 0:00:11]} Nc6 {[%emt 0:07:17]} 7. Nd5 {[%emt 0:00:27]} Nd4 {[%emt 0:00:12]} 8. Nxe7 {[%emt 0:00:13]} Nxe2 {[%emt 0:00:09]} 9. Nd5 {[%emt 0:00:33]} Nd4 {[%emt 0:02:08]} 10. Bd3 {[%emt 0:01:22]} Nc5 {[%emt 0:02:29]} 11. Nxc7+ {[%emt 0:00:31]} Kd7 {[%emt 0:06:08]} 12. Nxa8 {[%emt 0:00:19]} Nxd3+ {[%emt 0:00:11]} 13. cxd3 {[%emt 0:00:11]} Nc2+ {[%emt 0:00:09]} 14. Kd1 {[%emt 0:00:21]} Nxa1 {[%emt 0:00:08]} 15. b4 {[%emt 0:05:16]} b5 {[%emt 0:05:49]} 16. Bb2 {[%emt 0:02:02]} Bb7 {[%emt 0:00:29]} 17. Rg1 {[%emt 0:11:24]} Nb3 {[%emt 0:08:08]} 18. Nb6+ {[%emt 0:05:26]} axb6 {[%emt 0:00:13]} 1/2-1/2

[Event "1st Chartres GM 2020"]
[Site "Chartres"]
[Date "2020.10.02"]
[Round "5.1"]
[White "Maurizzi, Marc Andria"]
[Black "Loiseau, Quentin"]
[Result "0-1"]
[ECO "B45"]
[WhiteElo "2433"]
[BlackElo "2457"]
[Annotator "ChessBase"]
[PlyCount "84"]
[EventDate "2020.09.30"]
[EventType "tourn"]
[EventCountry "FRA"]
[SourceTitle "playchess.com"]
[Source "ChessBase"]
[SourceQuality "1"]
[TimeControl "5400+30"]

1. e4 {[%emt 0:00:00]} c5 {[%emt 0:00:00]} 2. Nf3 {[%emt 0:00:00]} Nc6 {[%emt 0:00:00]} 3. Nc3 {[%emt 0:00:00]} e6 {[%emt 0:00:07]} 4. d4 {[%emt 0:00:11]} cxd4 {[%emt 0:00:18]} 5. Nxd4 {[%emt 0:00:01]} Nf6 {[%emt 0:00:17]} 6. g3 {[%emt 0:00:05]} Bb4 {[%emt 0:04:18]} 7. Bg2 {[%emt 0:00:04]} Qb6 {[%emt 0:13:37]} 8. Nb3 {[%emt 0:00:48]} d5 {[%emt 0:07:16]} 9. exd5 {[%emt 0:16:05]} Nxd5 {[%emt 0:00:23]} 10. O-O {[%emt 0:06:38]} Nxc3 {[%emt 0:01:50]} 11. bxc3 {[%emt 0:00:01]} Bxc3 {[%emt 0:05:07]} 12. Ba3 {[%emt 0:07:34]} Bb4 {[%emt 0:06:16]} 13. Bb2 {[%emt 0:06:01]} O-O {[%emt 0:00:57]} 14. a4 {[%emt 0:01:37]} Rd8 {[%emt 0:03:40]} 15. Qe2 {[%emt 0:00:09]} a5 {[%emt 0:10:46]} 16. Rfd1 {[%emt 0:04:20]} Bd7 {[%emt 0:04:28]} 17. Qg4 {[%emt 0:19:34]} Bf8 {[%emt 0:03:09]} 18. Bf6 {[%emt 0:00:10]} Ne7 {[%emt 0:00:59]} 19. Qg5 {[%emt 0:09:12]} h6 {[%emt 0:00:57]} 20. Qc5 {[%emt 0:00:10]} Qxc5 {[%emt 0:06:45]} 21. Nxc5 {[%emt 0:00:01]} Bc6 {[%emt 0:08:52]} 22. Bxe7 {[%emt 0:00:52]} Bxe7 {[%emt 0:01:22]} 23. Bxc6 {[%emt 0:03:45]} bxc6 {[%emt 0:04:43]} 24. Rxd8+ {[%emt 0:00:47]} Rxd8 {[%emt 0:00:55]} 25. Nb7 {[%emt 0:00:06]} Rd2 {[%emt 0:03:59]} 26. Nxa5 {[%emt 0:01:14]} Rxc2 {[%emt 0:03:04]} 27. Nb7 {[%emt 0:02:11]} Rb2 {[%emt 0:00:42]} 28. Na5 {[%emt 0:00:18]} Bc5 {[%emt 0:03:20]} 29. Rf1 {[%emt 0:00:21]} Rc2 {[%emt 0:03:18]} 30. Kg2 {[%emt 0:02:57]} Bb6 {[%emt 0:00:31]} 31. Nb7 {[%emt 0:01:09]} Ra2 {[%emt 0:00:05]} 32. Rc1 {[%emt 0:00:49]} Bxf2 {[%emt 0:00:16]} 33. Rc4 {[%emt 0:00:26]} Rb2 {[%emt 0:01:54]} 34. Kf3 {[%emt 0:00:39]} Rxb7 {[%emt 0:01:06]} 35. Kxf2 {[%emt 0:00:02]} Rb2+ {[%emt 0:00:26]} 36. Ke3 {[%emt 0:00:12]} Rxh2 {[%emt 0:00:33]} 37. Kd4 {[%emt 0:00:01]} Rg2 {[%emt 0:00:52]} 38. Kc5 {[%emt 0:00:13]} Rxg3 {[%emt 0:00:14]} 39. a5 {[%emt 0:00:01]} Ra3 {[%emt 0:00:24]} 40. Kb6 {[%emt 0:00:01]} g5 {[%emt 0:00:35]} 41. Rc5 {[%emt 0:00:01]} g4 {[%emt 0:00:22]} 42. a6 {[%emt 0:00:00]} g3 {[%emt 0:00:26]} 0-1

[Event "1st Chartres GM 2020"]
[Site "Chartres"]
[Date "2020.10.02"]
[Round "5.2"]
[White "Stephan, Victor"]
[Black "Dardha, Daniel"]
[Result "0-1"]
[ECO "A46"]
[WhiteElo "2439"]
[BlackElo "2468"]
[Annotator "ChessBase"]
[PlyCount "170"]
[EventDate "2020.09.30"]
[EventType "tourn"]
[EventCountry "FRA"]
[SourceTitle "playchess.com"]
[Source "ChessBase"]
[SourceQuality "1"]
[TimeControl "5400+30"]

1. d4 {[%emt 0:00:00]} Nf6 {[%emt 0:00:00]} 2. Nf3 {[%emt 0:00:05]} b6 {[%emt 0:00:00]} 3. Bg5 {[%emt 0:02:10]} e6 {[%emt 0:00:37]} 4. e3 {[%emt 0:02:33]} Bb7 {[%emt 0:00:29]} 5. Nbd2 {[%emt 0:01:23]} Be7 {[%emt 0:00:05]} 6. Bd3 {[%emt 0:01:05]} c5 {[%emt 0:00:06]} 7. c3 {[%emt 0:00:42]} cxd4 {[%emt 0:00:26]} 8. cxd4 {[%emt 0:05:12]} h6 {[%emt 0:00:40]} 9. Bh4 {[%emt 0:04:43]} d6 {[%emt 0:00:41]} 10. Qe2 {[%emt 0:03:43]} Nbd7 {[%emt 0:04:23]} 11. Rc1 {[%emt 0:02:59]} O-O {[%emt 0:06:12]} 12. Ba6 {[%emt 0:06:08]} Bxa6 {[%emt 0:07:49]} 13. Qxa6 {[%emt 0:00:09]} e5 {[%emt 0:00:40]} 14. O-O {[%emt 0:05:38]} e4 {[%emt 0:02:56]} 15. Ne1 {[%emt 0:04:30]} d5 {[%emt 0:11:28]} 16. Nc2 {[%emt 0:03:19]} Qc8 {[%emt 0:00:53]} 17. Nb4 {[%emt 0:03:10]} Qxa6 {[%emt 0:00:28]} 18. Nxa6 {[%emt 0:00:05]} Rac8 {[%emt 0:03:08]} 19. Nb1 {[%emt 0:04:47]} Bd6 {[%emt 0:11:26]} 20. Nc3 {[%emt 0:03:19]} g5 {[%emt 0:02:21]} 21. Bg3 {[%emt 0:03:09]} Bxg3 {[%emt 0:00:07]} 22. fxg3 {[%emt 0:04:25]} Rc4 {[%emt 0:10:03]} 23. b3 {[%emt 0:03:19]} Rc6 {[%emt 0:00:15]} 24. Nb4 {[%emt 0:06:20]} Rd6 {[%emt 0:02:40]} 25. Nb5 {[%emt 0:00:27]} Re6 {[%emt 0:00:08]} 26. Nxa7 {[%emt 0:00:35]} Kg7 {[%emt 0:03:01]} 27. Rc7 {[%emt 0:01:47]} Rd6 {[%emt 0:03:41]} 28. Nb5 {[%emt 0:00:32]} Re6 {[%emt 0:00:10]} 29. h3 {[%emt 0:01:41]} Rd8 {[%emt 0:00:52]} 30. g4 {[%emt 0:01:20]} Nf8 {[%emt 0:01:22]} 31. a4 {[%emt 0:00:54]} Ng6 {[%emt 0:00:53]} 32. Rfc1 {[%emt 0:02:38]} h5 {[%emt 0:02:34]} 33. gxh5 {[%emt 0:00:21]} Nxh5 {[%emt 0:00:13]} 34. Rb7 {[%emt 0:01:50]} g4 {[%emt 0:04:08]} 35. hxg4 {[%emt 0:01:44]} Nf6 {[%emt 0:00:10]} 36. Rcc7 {[%emt 0:03:34]} Nxg4 {[%emt 0:00:45]} 37. Rxf7+ {[%emt 0:00:14]} Kh6 {[%emt 0:00:11]} 38. Nc2 {[%emt 0:07:01]} Rc8 {[%emt 0:03:08]} 39. Rfc7 {[%emt 0:01:10]} Rf8 {[%emt 0:02:48]} 40. Rf7 {[%emt 0:00:23]} Rxf7 {[%emt 0:03:37]} 41. Rxf7 {[%emt 0:00:02]} Rc6 {[%emt 0:00:05]} 42. Rc7 {[%emt 0:00:42]} Rf6 {[%emt 0:00:04]} 43. Nc3 {[%emt 0:02:20]} Rf2 {[%emt 0:00:55]} 44. Nxd5 {[%emt 0:00:18]} Nh4 {[%emt 0:00:37]} 45. Nf4 {[%emt 0:00:25]} Rd2 {[%emt 0:01:54]} 46. Ne1 {[%emt 0:01:14]} Nf5 {[%emt 0:01:23]} 47. Rc6+ {[%emt 0:00:58]} Kh7 {[%emt 0:00:46]} 48. Nd5 {[%emt 0:02:45]} Kg7 {[%emt 0:02:51]} 49. Rc7+ {[%emt 0:01:42]} Kf8 {[%emt 0:00:54]} 50. Rc1 {[%emt 0:02:08]} Ng3 {[%emt 0:01:59]} 51. Nf4 {[%emt 0:00:10]} Rf2 {[%emt 0:00:59]} 52. Nf3 {[%emt 0:00:12]} exf3 {[%emt 0:00:51]} 53. gxf3 {[%emt 0:00:07]} Rxf3 {[%emt 0:00:30]} 54. Rc8+ {[%emt 0:00:36]} Kf7 {[%emt 0:00:24]} 55. Rc7+ {[%emt 0:00:22]} Kg8 {[%emt 0:01:28]} 56. Nd5 {[%emt 0:02:05]} Rf2 {[%emt 0:03:19]} 57. Ne7+ {[%emt 0:02:07]} Kf8 {[%emt 0:00:01]} 58. Ng6+ {[%emt 0:00:04]} Ke8 {[%emt 0:00:03]} 59. Nf4 {[%emt 0:00:14]} Ne4 {[%emt 0:01:29]} 60. Nd5 {[%emt 0:00:58]} Ng5 {[%emt 0:00:42]} 61. Rc8+ {[%emt 0:01:08]} Kf7 {[%emt 0:00:09]} 62. Rh8 {[%emt 0:00:04]} Nf3+ {[%emt 0:00:24]} 63. Kh1 {[%emt 0:00:01]} Ke6 {[%emt 0:01:40]} 64. Nf4+ {[%emt 0:00:12]} Kf6 {[%emt 0:00:41]} 65. Nd3 {[%emt 0:01:16]} Rf1+ {[%emt 0:00:39]} 66. Kg2 {[%emt 0:00:01]} Nxe3+ {[%emt 0:00:06]} 67. Kg3 {[%emt 0:00:02]} Kg7 {[%emt 0:00:23]} 68. Rb8 {[%emt 0:00:54]} Nxd4 {[%emt 0:00:20]} 69. Rxb6 {[%emt 0:00:43]} Rf3+ {[%emt 0:00:09]} 70. Kh2 {[%emt 0:00:32]} Ng4+ {[%emt 0:00:06]} 71. Kg2 {[%emt 0:00:02]} Rxd3 {[%emt 0:00:06]} 72. a5 {[%emt 0:00:02]} Nxb3 {[%emt 0:01:08]} 73. a6 {[%emt 0:00:04]} Nc5 {[%emt 0:00:13]} 74. Rb5 {[%emt 0:01:14]} Ne6 {[%emt 0:00:43]} 75. Rb4 {[%emt 0:00:29]} Nf6 {[%emt 0:01:14]} 76. Ra4 {[%emt 0:01:49]} Rd8 {[%emt 0:00:04]} 77. a7 {[%emt 0:00:03]} Ra8 {[%emt 0:00:03]} 78. Kf3 {[%emt 0:00:15]} Kf7 {[%emt 0:00:05]} 79. Ke3 {[%emt 0:00:20]} Ke7 {[%emt 0:00:02]} 80. Ra1 {[%emt 0:00:04]} Kd6 {[%emt 0:00:27]} 81. Kd3 {[%emt 0:00:12]} Nc5+ {[%emt 0:01:10]} 82. Kc4 {[%emt 0:00:01]} Kc6 {[%emt 0:00:18]} 83. Ra3 {[%emt 0:01:25]} Nfd7 {[%emt 0:00:15]} 84. Ra1 {[%emt 0:01:03]} Nb6+ {[%emt 0:00:30]} 85. Kb4 {[%emt 0:00:05]} Nba4 {[%emt 0:00:09]} 0-1

[Event "1st Chartres GM 2020"]
[Site "Chartres"]
[Date "2020.10.02"]
[Round "5.3"]
[White "Lamard, Guillaume"]
[Black "Duboue, Peio"]
[Result "1/2-1/2"]
[ECO "A09"]
[WhiteElo "2486"]
[BlackElo "2439"]
[Annotator "ChessBase"]
[PlyCount "39"]
[EventDate "2020.09.30"]
[EventType "tourn"]
[EventCountry "FRA"]
[SourceTitle "playchess.com"]
[Source "ChessBase"]
[SourceQuality "1"]
[TimeControl "5400+30"]

1. Nf3 {[%emt 0:00:00]} d5 {[%emt 0:00:00]} 2. g3 {[%emt 0:00:00]} g6 {[%emt 0:00:00]} 3. c4 {[%emt 0:02:13]} d4 {[%emt 0:03:39]} 4. b4 {[%emt 0:05:14]} Bg7 {[%emt 0:01:17]} 5. d3 {[%emt 0:04:49]} e5 {[%emt 0:14:59]} 6. Bg2 {[%emt 0:00:06]} Ne7 {[%emt 0:00:55]} 7. Bb2 {[%emt 0:01:21]} O-O {[%emt 0:00:58]} 8. O-O {[%emt 0:00:04]} a5 {[%emt 0:04:06]} 9. b5 {[%emt 0:02:31]} c5 {[%emt 0:01:00]} 10. Nbd2 {[%emt 0:05:27]} Ra7 {[%emt 0:01:36]} 11. Qc2 {[%emt 0:00:51]} b6 {[%emt 0:00:59]} 12. Rae1 {[%emt 0:04:29]} Rd7 {[%emt 0:04:39]} 13. Ne4 {[%emt 0:04:50]} h6 {[%emt 0:04:42]} 14. e3 {[%emt 0:01:05]} f5 {[%emt 0:04:07]} 15. Ned2 {[%emt 0:02:29]} g5 {[%emt 0:06:24]} 16. exd4 {[%emt 0:04:43]} exd4 {[%emt 0:00:05]} 17. Ne5 {[%emt 0:04:06]} Bxe5 {[%emt 0:00:04]} 18. Rxe5 {[%emt 0:00:17]} Ng6 {[%emt 0:00:14]} 19. Ree1 {[%emt 0:08:43]} Re8 {[%emt 0:02:57]} 20. Nf3 {[%emt 0:07:16]} 1/2-1/2

[Event "1st Chartres GM 2020"]
[Site "Chartres"]
[Date "2020.10.02"]
[Round "5.5"]
[White "Guliyev, Namig"]
[Black "Vlachos, Anatole"]
[Result "1-0"]
[ECO "C49"]
[WhiteElo "2529"]
[BlackElo "2437"]
[Annotator "ChessBase"]
[PlyCount "181"]
[EventDate "2020.09.30"]
[EventType "tourn"]
[EventCountry "FRA"]
[SourceTitle "playchess.com"]
[Source "ChessBase"]
[SourceQuality "1"]
[TimeControl "5400+30"]

1. e4 {[%emt 0:03:55]} e5 {[%emt 0:00:00]} 2. Nf3 {[%emt 0:00:06]} Nc6 {[%emt 0:00:00]} 3. Nc3 {[%emt 0:02:37]} Nf6 {[%emt 0:00:00]} 4. Bb5 {[%emt 0:03:15]} Bb4 {[%emt 0:00:00]} 5. O-O {[%emt 0:00:11]} O-O {[%emt 0:00:18]} 6. d3 {[%emt 0:00:03]} d6 {[%emt 0:01:12]} 7. Ne2 {[%emt 0:00:14]} Ne7 {[%emt 0:01:57]} 8. c3 {[%emt 0:00:35]} Bc5 {[%emt 0:01:16]} 9. d4 {[%emt 0:03:21]} Bb6 {[%emt 0:00:06]} 10. Ng3 {[%emt 0:00:15]} Ng6 {[%emt 0:09:09]} 11. h3 {[%emt 0:05:30]} exd4 {[%emt 0:05:34]} 12. cxd4 {[%emt 0:00:34]} d5 {[%emt 0:00:06]} 13. Bg5 {[%emt 0:06:58]} h6 {[%emt 0:04:17]} 14. Bxf6 {[%emt 0:00:24]} Qxf6 {[%emt 0:00:03]} 15. exd5 {[%emt 0:00:09]} Nf4 {[%emt 0:03:51]} 16. Qb3 {[%emt 0:01:55]} h5 {[%emt 0:08:45]} 17. Rfe1 {[%emt 0:02:09]} h4 {[%emt 0:02:59]} 18. Ne4 {[%emt 0:03:41]} Qh6 {[%emt 0:02:40]} 19. Neg5 {[%emt 0:07:44]} Qd6 {[%emt 0:02:32]} 20. Bc4 {[%emt 0:05:12]} Bd7 {[%emt 0:00:04]} 21. Rad1 {[%emt 0:06:47]} Rae8 {[%emt 0:07:42]} 22. Re5 {[%emt 0:10:08]} Ba5 {[%emt 0:07:40]} 23. Ne4 {[%emt 0:05:13]} Qh6 {[%emt 0:02:58]} 24. Qe3 {[%emt 0:05:05]} Bb4 {[%emt 0:20:52]} 25. Rxe8 {[%emt 0:04:17]} Rxe8 {[%emt 0:02:39]} 26. Ne5 {[%emt 0:00:20]} Re7 {[%emt 0:06:36]} 27. Nxd7 {[%emt 0:02:35]} Rxd7 {[%emt 0:00:05]} 28. Nf6+ {[%emt 0:00:48]} Qxf6 {[%emt 0:00:04]} 29. Qe8+ {[%emt 0:00:23]} Kh7 {[%emt 0:00:03]} 30. Qxd7 {[%emt 0:00:10]} Bd6 {[%emt 0:00:03]} 31. Qg4 {[%emt 0:01:05]} g6 {[%emt 0:00:02]} 32. Bb3 {[%emt 0:02:31]} Kg7 {[%emt 0:00:47]} 33. Kf1 {[%emt 0:02:31]} a5 {[%emt 0:01:12]} 34. Qf3 {[%emt 0:01:21]} Qd8 {[%emt 0:02:43]} 35. a4 {[%emt 0:00:52]} Qa8 {[%emt 0:01:21]} 36. Bc4 {[%emt 0:00:48]} Qe8 {[%emt 0:01:17]} 37. b3 {[%emt 0:00:29]} Qd8 {[%emt 0:00:17]} 38. Re1 {[%emt 0:00:21]} Qg5 {[%emt 0:01:11]} 39. Qg4 {[%emt 0:04:08]} Qd8 {[%emt 0:01:15]} 40. Re3 {[%emt 0:02:23]} f5 {[%emt 0:01:42]} 41. Qf3 {[%emt 0:02:20]} Qf6 {[%emt 0:00:11]} 42. Re1 {[%emt 0:03:12]} Qxd4 {[%emt 0:00:53]} 43. Kg1 {[%emt 0:00:15]} Qf6 {[%emt 0:01:00]} 44. Bf1 {[%emt 0:00:28]} b6 {[%emt 0:01:02]} 45. Bb5 {[%emt 0:01:14]} Qd4 {[%emt 0:00:28]} 46. Rd1 {[%emt 0:00:23]} Qe5 {[%emt 0:01:09]} 47. Kf1 {[%emt 0:00:32]} Bc5 {[%emt 0:00:49]} 48. Re1 {[%emt 0:00:42]} Qd4 {[%emt 0:00:00]} 49. Rc1 {[%emt 0:01:53]} Kh7 {[%emt 0:02:49]} 50. Rd1 {[%emt 0:01:17]} Qe5 {[%emt 0:00:01]} 51. Bc6 {[%emt 0:00:30]} Nh5 {[%emt 0:00:29]} 52. d6 {[%emt 0:01:26]} cxd6 {[%emt 0:00:30]} 53. Qd5 {[%emt 0:00:24]} Qf4 {[%emt 0:01:04]} 54. Qf7+ {[%emt 0:00:39]} Ng7 {[%emt 0:00:08]} 55. Bf3 {[%emt 0:00:14]} Qe5 {[%emt 0:00:41]} 56. Qc4 {[%emt 0:00:32]} g5 {[%emt 0:00:47]} 57. Qe2 {[%emt 0:00:31]} Qc3 {[%emt 0:00:31]} 58. Bd5 {[%emt 0:00:16]} Qe5 {[%emt 0:00:36]} 59. Qf3 {[%emt 0:00:05]} Kg6 {[%emt 0:00:21]} 60. Bc4 {[%emt 0:00:14]} Qb2 {[%emt 0:00:39]} 61. Re1 {[%emt 0:00:38]} Bb4 {[%emt 0:00:02]} 62. Rd1 {[%emt 0:00:22]} Bc5 {[%emt 0:00:21]} 63. Bd3 {[%emt 0:00:45]} Kf6 {[%emt 0:00:23]} 64. Rb1 {[%emt 0:00:34]} Qd2 {[%emt 0:00:22]} 65. Re1 {[%emt 0:01:04]} Bb4 {[%emt 0:01:05]} 66. Rd1 {[%emt 0:00:06]} Qb2 {[%emt 0:00:02]} 67. Bc4 {[%emt 0:00:33]} Kg6 {[%emt 0:00:48]} 68. Kg1 {[%emt 0:00:14]} Qe5 {[%emt 0:00:46]} 69. Rd5 {[%emt 0:00:36]} Qe1+ {[%emt 0:00:10]} 70. Kh2 {[%emt 0:00:51]} Bc3 {[%emt 0:00:08]} 71. Rxd6+ {[%emt 0:00:32]} Kh7 {[%emt 0:00:12]} 72. Rd1 {[%emt 0:00:41]} Be5+ {[%emt 0:00:02]} 73. g3 {[%emt 0:00:12]} hxg3+ {[%emt 0:01:05]} 74. fxg3 {[%emt 0:00:08]} Qb4 {[%emt 0:00:25]} 75. Qd5 {[%emt 0:00:58]} Qc3 {[%emt 0:00:22]} 76. Qd3 {[%emt 0:00:35]} Qb2+ {[%emt 0:01:10]} 77. Qd2 {[%emt 0:00:32]} Qxd2+ {[%emt 0:01:09]} 78. Rxd2 {[%emt 0:00:05]} Nh5 {[%emt 0:00:10]} 79. Rd3 {[%emt 0:00:48]} Kg7 {[%emt 0:00:24]} 80. Kg2 {[%emt 0:00:07]} Kf6 {[%emt 0:00:20]} 81. Ba6 {[%emt 0:00:19]} Bb8 {[%emt 0:00:59]} 82. Bc8 {[%emt 0:00:23]} Ke5 {[%emt 0:00:04]} 83. Rd8 {[%emt 0:00:38]} Kf6 {[%emt 0:01:03]} 84. Rf8+ {[%emt 0:00:43]} Ke7 {[%emt 0:00:13]} 85. Rxf5 {[%emt 0:00:15]} Nxg3 {[%emt 0:00:03]} 86. Rxg5 {[%emt 0:00:11]} Ne4 {[%emt 0:00:01]} 87. Rg7+ {[%emt 0:00:15]} Kd6 {[%emt 0:00:11]} 88. h4 {[%emt 0:00:25]} Kc5 {[%emt 0:01:04]} 89. h5 {[%emt 0:00:15]} Be5 {[%emt 0:00:02]} 90. Rg6 {[%emt 0:00:19]} Nd2 {[%emt 0:00:14]} 91. h6 {[%emt 0:00:15]} 1-0